bitfinex-derivatives/quotes_ETHF0:USTF0_20251117
["timestamp","ask_amount","ask_price","bid_price","bid_amount"]
[1763357742523,3.71662,3186.4,3186.1,0.00374769]
[1763357742721,0.50885,3186.2,3185.5,1.83348538]
[1763357742926,3.2078,3185.9,3185.5,0.1454]
[1763357743322,3.2078,3185.9,3185.1,4.89588538]
[1763357743623,1.31062336,3185.6,3185.2,0.00470551]
[1763357743822,1.31355909,3185.6,3185.2,0.00470551]
[1763357745029,0.00293573,3185.6,3185.5,0.1365]
[1763357749725,0.00293573,3185.6,3185.5,0.3755]
[1763357750828,0.00293573,3185.6,3185.2,0.00470551]
[1763357751030,3.2078,3185.4,3185.2,0.00470551]
[1763357752731,3.2078,3185.4,3185.2,0.24370551]
[1763357753032,3.2078,3185.4,3185.3,0.239]
[1763357759140,0.00293573,3185.6,3185.5,0.3869]
[1763357760238,0.00293573,3185.6,3185.5,3.5947]
[1763357760239,3.573e-05,3185.6,3185.5,3.5947]
[1763357760436,3.2078,3186.3,3186.2,0.239]
[1763357760834,3.2078,3186.8,3186.7,0.239]
[1763357761038,3.2078,3187.2,3187.1,0.239]
[1763357761238,3.2078,3187.6,3187.5,0.3869]
[1763357761429,3.2078,3187.6,3187.5,0.38963857]
[1763357761630,0.00470551,3187.9,3187.8,0.239]
[1763357762030,0.00470551,3187.9,3187.8,0.49099414]
[1763357762641,0.00718431,3187.9,3187.8,0.49099414]
[1763357763029,3.2078,3188.1,3188.0,0.3869]
[1763357763343,3.2078,3188.5,3188.4,0.239]
[1763357764137,3.21034995,3188.5,3188.4,0.239]
[1763357766441,3.21034995,3188.5,3188.0,3.3557]
[1763357766442,0.0102,3188.1,3188.0,3.2078]
[1763357766639,0.0075,3187.3,3187.2,5.51e-06]
[1763357766840,4.52592336,3187.3,3187.2,5.51e-06]
[1763357767042,10.52592336,3187.3,3187.2,5.51e-06]
[1763357767745,10.52592336,3187.3,3187.2,0.00292168]
[1763357768343,4.52592336,3187.3,3187.2,0.00292168]
[1763357770343,10.52592336,3187.3,3187.2,2.168e-05]
[1763357770546,0.50873,3187.0,3186.2,3.2078]
[1763357770736,4.36482105,3186.6,3186.2,3.2078]
[1763357770942,1.15702105,3186.3,3186.0,0.1479]
[1763357771444,1.15702105,3186.3,3186.0,0.1504908]
[1763357772345,0.00470551,3186.5,3186.0,0.1504908]
[1763357772546,0.00470551,3186.5,3186.4,0.239]
[1763357779556,3.2078,3187.4,3187.3,0.2337]
[1763357779754,3.2078,3187.8,3187.3,0.2337]
[1763357780051,0.0042,3187.1,3187.0,3.3557]
[1763357780249,0.0042,3187.1,3187.0,0.1479]
[1763357780755,1.15702105,3187.2,3187.1,0.2337]
[1763357781146,1.16122105,3187.2,3187.1,0.2337]
[1763357782656,0.0042,3187.2,3187.1,0.2337]
[1763357782857,3.21249276,3187.4,3187.1,0.2337]
[1763357783056,3.21249276,3187.4,3187.0,0.1479]
[1763357783057,2.3140421,3187.2,3186.0,0.0025908]
[1763357783352,4.36482105,3186.1,3186.0,1e-08]
[1763357783559,4.36482105,3186.1,3185.5,0.1479]
[1763357783749,3.2078,3185.6,3185.5,0.3816]
[1763357784452,3.21050707,3185.6,3185.5,0.38383785]
[1763357786855,3.21050707,3185.6,3185.5,0.15013785]
[1763357789763,3.21050707,3185.6,3185.5,0.38383785]
[1763357792366,3.21050707,3185.6,3185.5,0.15013785]
[1763357792770,3.21050707,3185.6,3185.5,0.38383785]
[1763357800773,3.2078,3186.0,3185.9,0.2337]
[1763357801973,3.21001931,3186.0,3185.9,0.2337]
[1763357803672,0.00221931,3186.0,3185.9,0.2337]
[1763357803871,1.931e-05,3186.0,3185.9,0.2337]
[1763357804676,1.931e-05,3186.0,3185.9,1.35302372]
[1763357805375,1.931e-05,3186.0,3185.9,0.2337]
[1763357808176,1.931e-05,3186.0,3185.7,4.32712372]
[1763357808370,1.15702105,3185.8,3185.5,0.15013785]
[1763357810377,1.15702105,3185.8,3185.5,0.00223785]
[1763357810580,0.50893,3185.7,3185.5,0.00223785]
[1763357811385,1.15702105,3185.8,3185.5,0.00223785]
[1763357811583,1.66593105,3185.8,3185.5,0.00223785]
[1763357812082,1.15702105,3185.8,3185.5,0.00223785]
[1763357812278,1.66593105,3185.8,3185.5,0.00223785]
[1763357812478,1.15702105,3185.8,3185.5,0.00223785]
[1763357814176,1.66593105,3185.8,3185.5,0.00223785]
[1763357814575,0.50893,3185.7,3185.5,0.00223785]
[1763357814782,0.50893,3185.7,3185.5,3.785e-05]
[1763357814982,1.15702105,3185.8,3185.5,3.785e-05]
[1763357815280,7.15702105,3185.8,3185.2,0.00470551]
[1763357815485,4.36482105,3185.3,3185.2,5.51e-06]
[1763357815678,4.36482105,3185.3,3184.5,0.1479]
[1763357815984,3.2078,3184.6,3184.5,0.3834]
[1763357816283,2.8306947,3184.6,3184.5,0.15189277]
[1763357817085,2.8306947,3184.6,3184.5,0.38739277]
[1763357817582,2.8306947,3184.6,3184.5,0.15189277]
[1763357818480,3.98771575,3184.6,3184.5,0.15189277]
[1763357821476,3.98771575,3184.6,3184.5,0.13939277]
[1763357822178,2.8306947,3184.6,3184.5,0.37489277]
[1763357822386,0.00470551,3184.9,3184.8,0.2355]
[1763357822781,5.51e-06,3184.9,3184.8,8.51184477]
[1763357822973,3.2078,3185.0,3184.9,0.2355]
[1763357822974,2.73931641,3185.0,3184.9,0.2355]
[1763357826180,0.00470551,3185.3,3185.0,0.1354]
[1763357827487,0.00470551,3185.3,3185.2,0.2355]
[1763357828087,0.00470551,3185.3,3185.0,0.1354]
[1763357828587,0.00470551,3185.3,3185.2,0.2355]
[1763357832589,0.00470551,3185.3,3185.0,0.1354]
[1763357832993,1.31195427,3185.2,3185.0,0.1354]
[1763357833187,1.31195427,3185.2,3184.5,3.34719277]
[1763357833489,0.51370551,3185.3,3184.8,0.2355]
[1763357833490,3.2078,3184.9,3184.8,0.2355]
[1763357834587,3.2078,3184.9,3184.5,4.46651649]
[1763357834893,3.2078,3184.9,3184.8,0.2355]
[1763357837794,3.2078,3184.9,3184.7,1.11932372]
[1763357839094,3.2078,3184.9,3184.8,1.11932372]
[1763357839292,3.2078,3184.9,3184.7,1.11932372]
[1763357839893,0.50914,3184.4,3184.2,0.00470551]
[1763357840191,3.2078,3184.3,3184.2,0.00470551]
[1763357840594,3.2078,3184.3,3184.2,0.23810551]
[1763357840890,3.2078,3184.3,3184.2,0.24125501]
[1763357842294,3.2078,3184.3,3184.2,0.00785501]
[1763357843188,3.2078,3184.3,3184.2,0.24125501]
[1763357844298,3.2078,3184.8,3184.5,0.1379]
[1763357845887,3.2078,3184.8,3184.7,0.2334]
[1763357846586,3.2078,3184.8,3184.6,1.11932372]
[1763357847188,3.2078,3184.8,3184.7,0.2334]
[1763357847388,3.2078,3184.8,3184.6,1.11932372]
[1763357847587,3.2078,3184.8,3184.5,1.25722372]
[1763357849298,1.82565978,3185.3,3184.5,1.25722372]
[1763357849497,3.2078,3185.0,3184.5,1.25722372]
[1763357849698,3.2078,3184.6,3184.4,1.11932372]
[1763357849994,1.31195427,3184.5,3184.2,0.00785501]
[1763357850998,0.50913,3184.4,3184.2,0.00785501]
[1763357851695,1.31195427,3184.5,3184.2,0.00785501]
[1763357851894,0.50914,3184.4,3184.2,0.00785501]
[1763357852201,1.31195427,3184.5,3184.2,0.00785501]
[1763357853000,0.50914,3184.4,3184.2,0.00785501]
[1763357853401,1.31195427,3184.5,3184.2,0.00785501]
[1763357853702,1.82107427,3184.5,3184.2,0.00785501]
[1763357854104,3.64914,3184.4,3184.2,0.00785501]
[1763357854402,0.50914,3184.4,3184.2,0.00785501]
[1763357861701,3.14,3184.3,3184.2,0.00785501]
[1763357861897,0.50921,3183.9,3183.7,0.03141049]
[1763357862099,3.2078,3183.8,3183.7,0.03141049]
[1763357862905,3.2078,3183.8,3183.7,0.0348545]
[1763357865008,3.2078,3183.8,3183.4,0.00470551]
[1763357865204,0.50959,3181.6,3181.4,2.19934244]
[1763357865402,4.51975427,3181.5,3181.0,0.1379]
[1763357865604,1.31195427,3181.5,3181.0,0.1379]
[1763357865806,4.51975427,3181.1,3181.0,0.1379]
[1763357865996,5.81027574,3181.1,3181.0,0.1379]
[1763357866304,5.30351938,3181.1,3181.0,0.14128333]
[1763357867010,5.30351938,3181.1,3180.7,0.00471305]
[1763357867210,0.78086147,3181.0,3180.7,0.00471305]
[1763357867404,0.78086147,3181.0,3180.7,1.13146015]
[1763357868109,0.78086147,3181.0,3180.7,1.13478618]
[1763357869601,0.78086147,3181.0,3180.9,0.2334]
[1763357870215,0.78086147,3181.0,3180.9,1.3601471]
[1763357870399,4.52265791,3181.1,3181.0,0.6371]
[1763357870604,3.99690566,3181.1,3181.0,1.7638471]
[1763357871103,3.72036364,3181.1,3181.0,0.1412]
[1763357871306,0.50969,3181.0,3180.7,0.00803908]
[1763357871609,1.31195427,3180.8,3180.7,1.13478618]
[1763357872308,1.31195427,3180.8,3180.7,0.00803908]
[1763357876518,1.31195427,3180.8,3180.7,1.63068618]
[1763357880227,3.21070364,3181.1,3181.0,0.6371]
[1763357880528,3.21070364,3181.1,3181.0,1.7638471]
[1763357882028,1.70670364,3181.1,3181.0,1.7638471]
[1763357883127,3.21251305,3181.4,3181.3,0.4959]
[1763357883426,3.21251305,3181.4,3181.3,1.6226471]
[1763357884221,3.21613908,3181.4,3181.3,1.6226471]
[1763357888227,4.02731869,3181.4,3181.3,1.6226471]
[1763357894132,5.1499118,3181.4,3181.3,1.6226471]
[1763357895231,4.02731869,3181.4,3181.3,1.6226471]
[1763357895532,1.16066831,3181.6,3181.3,1.6226471]
[1763357895533,1.67690591,3181.6,3181.5,0.6371]
[1763357895734,4.88470591,3181.9,3181.5,1.2679471]
[1763357895938,1.67690591,3181.8,3181.6,1.1267471]
[1763357896140,2.83757422,3181.8,3181.7,0.4959]
[1763357896338,1.16066831,3181.8,3181.7,1.6226471]
[1763357896635,3.2078,3181.9,3181.7,1.1267471]
[1763357896840,3.21148099,3181.9,3181.8,1.1267471]
[1763357897033,3.21148099,3181.9,3181.6,1.1267471]
[1763357897640,3.21148099,3181.9,3181.5,0.1412]
[1763357897837,3.21148099,3181.9,3181.5,0.6502]
[1763357900642,3.2078,3181.7,3181.5,0.1412]
[1763357905732,3.2078,3181.7,3181.0,0.1412]
[1763357905937,3.2078,3181.2,3181.1,1.6619471]
[1763357907647,3.96135375,3181.2,3181.1,1.6619471]
[1763357909737,3.96135375,3181.2,3181.1,2.43570198]
[1763357909940,0.75355375,3181.2,3181.1,2.43570198]
[1763357910138,3.7537,3181.6,3181.5,0.8586]
[1763357910347,4.50854713,3181.6,3181.5,0.8586]
[1763357910849,4.50854713,3181.6,3181.5,0.5352]
[1763357911047,4.50854713,3181.6,3181.0,3.349]
[1763357911236,0.5459,3181.3,3181.2,0.5352]
[1763357911443,1.30074713,3181.3,3181.2,0.5352]
[1763357911641,1.30074713,3181.3,3181.2,1.6619471]
[1763357912051,2.07450201,3181.3,3181.2,1.6619471]
[1763357912546,2.07450201,3181.3,3181.2,1.1267471]
[1763357914742,1.30074713,3181.3,3181.2,1.1267471]
[1763357915553,1.30074713,3181.3,3181.2,1.6619471]
[1763357917552,1.30074713,3181.3,3181.2,1.1267471]
[1763357918350,0.5459,3181.1,3181.0,3.2078]
[1763357918544,0.5459,3181.1,3180.7,0.00803908]
[1763357918744,0.5459,3181.1,3181.0,1.1267471]
[1763357919451,0.5459,3180.8,3180.7,0.00803908]
[1763357919856,1.29972177,3180.8,3180.7,1.13478618]
[1763357920756,1.29972177,3180.8,3180.7,1.66998618]
[1763357922459,1.29972177,3180.8,3180.7,1.13478618]
[1763357923654,1.29972177,3180.8,3180.7,0.00803908]
[1763357924052,0.92215814,3180.8,3180.7,0.00803908]
[1763357924263,0.16833637,3180.8,3180.7,0.00803908]
[1763357924660,0.92215814,3180.8,3180.7,0.00803908]
[1763357925259,4.12995814,3180.8,3180.7,0.00803908]
[1763357926153,0.5459,3180.2,3180.1,3.2078]
[1763357926347,4.36849947,3180.4,3180.2,1.1267471]
[1763357926549,1.91244066,3180.3,3179.5,0.3234]
[1763357926849,3.2078,3179.6,3179.5,0.8586]
[1763357927260,3.21096197,3179.6,3179.5,0.86172063]
[1763357927858,3.21096197,3179.6,3179.5,0.32652063]
[1763357928059,3.21096197,3179.6,3179.5,0.86172063]
[1763357930462,0.00316197,3179.6,3179.5,0.86172063]
[1763357935269,0.00316197,3179.6,3179.5,0.32652063]
[1763357937669,0.00316197,3179.6,3179.5,0.85622063]
[1763357942476,0.00471305,3179.9,3179.8,0.5297]
[1763357942669,1.305e-05,3179.9,3179.8,0.5297]
[1763357942861,3.2078,3180.1,3180.0,0.8475]
[1763357943070,0.5481,3181.2,3180.5,0.3178]
[1763357943268,4.0736,3181.5,3181.4,0.5297]
[1763357943472,0.5481,3181.1,3181.0,0.8475]
[1763357944172,1.70879947,3181.3,3181.2,0.5297]
[1763357946973,0.5481,3181.1,3181.0,0.5297]
[1763357947675,0.00471305,3181.4,3181.3,0.5297]
[1763357947973,0.55281305,3181.4,3181.3,0.5297]
[1763357954477,0.55281305,3181.4,3181.0,0.3178]
[1763357954478,0.5481,3181.1,3181.0,0.8475]
[1763357954678,0.5481,3181.1,3181.0,0.5297]
[1763357954881,1.32204947,3181.1,3181.0,0.5297]
[1763357956984,1.32204947,3181.1,3180.7,3.21251305]
[1763357956985,0.5828,3180.8,3180.7,3.74011305]
[1763357957287,1.35674947,3180.8,3180.7,3.74011305]
[1763357957487,2.13069894,3180.8,3180.7,0.00471305]
[1763357957678,2.13069894,3180.8,3180.1,3.2078]
[1763357957679,0.5828,3180.2,3180.1,3.7354]
[1763357957985,1.35674947,3180.2,3180.1,3.7354]
[1763357958882,0.5828,3180.2,3180.1,3.7354]
[1763357959086,0.5828,3180.2,3180.1,0.5276]
[1763357959289,0.5297,3179.9,3179.8,0.57831305]
[1763357960287,3.2078,3180.6,3180.5,0.5358]
[1763357960490,4.50415687,3180.6,3180.5,0.5358]
[1763357961396,3.7553,3180.6,3180.5,0.5358]
[1763357963088,3.2078,3180.6,3180.5,0.8554]
[1763357963588,3.7553,3180.6,3180.5,0.8554]
[1763357963791,3.2078,3180.6,3180.5,0.8554]
[1763357966099,3.5493,3181.0,3180.5,0.8554]
[1763357966399,0.74950445,3180.9,3180.5,0.8554]
[1763357966593,3.5493,3181.0,3180.5,0.8554]
[1763357966789,0.74966319,3180.9,3180.5,0.8554]
[1763357969701,1.29716319,3180.9,3180.8,0.5358]
[1763357972293,0.74966319,3180.9,3180.8,0.5358]
[1763357972492,3.2078,3181.0,3180.9,0.5358]
[1763357972698,3.95845,3181.0,3180.9,0.5358]
[1763357973297,4.84745,3181.0,3180.9,0.5358]
[1763357973504,4.84745,3181.0,3180.5,0.3196]
[1763357973701,0.75065,3180.9,3180.5,0.3196]
[1763357974100,0.5475,3180.6,3180.5,0.8554]
[1763357974303,0.5475,3180.6,3180.5,0.5358]
[1763357974505,3.5493,3181.0,3180.5,0.8554]
[1763357974799,0.5475,3180.6,3180.5,0.8554]
[1763357975098,0.3415,3180.5,3180.1,4.6858]
[1763357975301,0.5475,3180.2,3180.1,5.2216]
[1763357975603,0.5475,3180.2,3180.1,3.2078]
[1763357976700,1.29814043,3180.2,3180.1,3.2078]
[1763357977503,0.5475,3179.9,3179.8,0.00471305]
[1763357978108,1.29773312,3179.9,3179.8,0.00471305]
[1763357978805,2.07232032,3179.9,3179.8,0.00471305]
[1763357979701,2.07232032,3179.9,3179.8,0.54051305]
[1763357980102,0.75023312,3179.9,3179.8,0.54051305]
[1763357980302,0.5475,3180.1,3180.0,0.5358]
[1763357980611,1.29742821,3180.1,3180.0,0.5358]
[1763357982502,0.74992821,3180.1,3180.0,0.8554]
[1763357982707,0.3415,3180.5,3180.0,0.8554]
[1763357982905,1.09153852,3180.5,3180.0,0.8554]
[1763357984707,1.63903852,3180.5,3180.4,0.5358]
[1763357985810,1.63903852,3180.5,3180.0,0.3196]
[1763357986007,1.29753852,3180.4,3180.3,0.5358]
[1763357986514,1.29753852,3180.4,3180.0,0.3196]
[1763357986807,1.29753852,3180.3,3180.2,0.5358]
[1763357987012,0.75003852,3180.3,3180.2,0.5358]
[1763357987309,1.63965485,3180.5,3180.4,0.5358]
[1763357992315,0.75065485,3180.5,3180.4,0.5358]
[1763357994013,3.2078,3180.6,3180.5,0.8079]
[1763357994214,3.95843387,3180.6,3180.5,0.8079]
[1763357994803,3.2078,3180.6,3180.5,0.8079]
[1763357998809,3.6848,3180.6,3180.5,0.8079]
[1763357999010,3.2078,3180.6,3180.5,0.8079]
[1763357999607,4.0263,3181.0,3180.9,0.4934]
[1763357999813,4.77541221,3181.0,3180.9,0.4934]
[1763358000420,3.6848,3181.0,3180.9,0.4934]
[1763358001516,5.45861673,3181.0,3180.5,0.3145]
[1763358001715,4.70953154,3181.0,3180.5,0.3145]
[1763358001920,1.22590384,3180.9,3180.8,0.4934]
[1763358002614,0.74890384,3180.9,3180.8,0.4934]
[1763358002919,0.00471305,3181.4,3181.3,0.4934]
[1763358003214,0.48171305,3181.4,3181.0,0.3145]
[1763358003420,0.48171305,3181.4,3181.3,0.4934]
[1763358005221,0.00471305,3181.4,3181.3,1.26723154]
[1763358005918,0.74829519,3182.1,3181.3,1.26723154]
[1763358005919,0.477,3182.1,3181.5,0.1622]
[1763358006122,0.477,3182.1,3181.6,3.2078]
[1763358006423,0.8053,3182.0,3181.9,0.4934]
[1763358006919,0.80762418,3182.0,3181.9,0.49714096]
[1763358009023,0.80762418,3182.0,3181.9,0.00374096]
[1763358009526,1.55456032,3182.0,3181.9,0.00374096]
[1763358011328,0.80762418,3182.0,3181.9,0.00374096]
[1763358013327,1.55454362,3182.0,3181.9,0.00374096]
[1763358014829,2.32812106,3182.0,3181.9,0.00374096]
[1763358015133,1.58120162,3182.0,3181.9,0.49714096]
[1763358016030,1.58120162,3182.0,3181.9,0.00374096]
[1763358017137,2.32869623,3182.0,3181.9,0.00374096]
[1763358019721,3.10227367,3182.0,3181.9,4.096e-05]
[1763358020025,0.4471,3181.0,3180.9,3.6832]
[1763358020327,1.22067744,3181.0,3180.9,3.6832]
[1763358020828,1.22067744,3181.0,3180.9,3.68563196]
[1763358021331,1.50687744,3181.0,3180.9,3.21023196]
[1763358021536,2.01655744,3181.0,3180.9,0.00243196]
[1763358021837,2.76507554,3181.0,3180.9,0.00243196]
[1763358022333,0.4471,3180.7,3180.6,0.00471305]
[1763358022534,1.22067744,3180.7,3180.6,0.00471305]
[1763358022736,1.96919554,3180.7,3180.6,0.00471305]
[1763358023331,1.96919554,3180.7,3180.6,0.00831958]
[1763358024334,1.96919554,3180.7,3180.6,0.48371958]
[1763358024530,0.4471,3180.7,3180.6,0.48371958]
[1763358026740,3.2078,3180.8,3180.7,0.4754]
[1763358026929,3.6549,3180.8,3180.7,0.4754]
[1763358027134,0.4471,3180.7,3180.6,0.00831958]
[1763358027334,0.4471,3180.7,3180.6,0.48371958]
[1763358036643,0.50988,3179.7,3179.5,9.6e-07]
[1763358036946,10.07683855,3179.6,3179.0,0.279]
[1763358037147,4.75495488,3179.1,3178.5,0.279]
[1763358037445,0.77357744,3178.8,3178.5,0.279]
[1763358037638,1.52494141,3178.8,3178.7,0.50981402]
[1763358038150,2.29851885,3178.8,3178.7,0.03441402]
[1763358040258,1.55004533,3178.8,3178.7,0.03441402]
[1763358041149,0.00132972,3179.1,3179.0,0.7544]
[1763358041350,0.77357744,3179.9,3179.5,0.7544]
[1763358041553,0.5097,3180.9,3180.5,0.279]
[1763358041758,4.75495488,3180.6,3180.5,0.279]
[1763358042149,3.98376402,3180.6,3180.5,0.279]
[1763358042361,4.75734146,3180.6,3180.5,0.279]
[1763358042761,4.37158893,3180.6,3180.5,0.279]
[1763358043662,3.21018658,3180.6,3180.5,0.279]
[1763358043865,3.21018658,3180.6,3180.5,0.7544]
[1763358046758,3.21018658,3180.6,3180.5,0.279]
[1763358046759,4.37158893,3180.6,3180.5,0.279]
[1763358047467,3.21018658,3180.6,3180.5,0.7544]
[1763358051968,3.21018658,3180.6,3180.5,0.279]
[1763358053867,3.21018658,3180.6,3180.5,0.9659]
[1763358054172,2.09389261,3180.6,3180.5,2.12730235]
[1763358054367,0.00471305,3180.9,3180.8,0.6869]
[1763358054567,0.00471305,3180.9,3180.8,1.84830235]
[1763358055472,0.00706993,3180.9,3180.8,1.84830235]
[1763358055673,3.2078,3181.4,3181.3,0.6869]
[1763358056660,3.21181075,3181.4,3181.3,0.68918405]
[1763358060173,3.21181075,3181.4,3181.3,0.90838123]
[1763358060370,3.21181075,3181.4,3181.3,0.00228405]
[1763358060573,4.3732131,3181.4,3181.3,0.00228405]
[1763358060770,3.21181075,3181.4,3181.3,0.00228405]
[1763358061767,3.21181075,3181.4,3181.3,0.68918405]
[1763358061970,0.00471305,3181.7,3181.6,0.6869]
[1763358062169,3.2078,3182.7,3182.6,0.6869]
[1763358062372,1.68688395,3183.1,3183.0,0.2657]
[1763358062373,3.2078,3183.1,3183.0,0.2657]
[1763358063072,3.21059253,3183.1,3183.0,0.2657]
[1763358063976,4.37199488,3183.1,3182.7,0.00471305]
[1763358065184,0.50938,3182.9,3182.7,0.00471305]
[1763358065479,4.37199488,3183.1,3182.7,0.00471305]
[1763358065874,3.21059253,3183.1,3182.7,0.00471305]
[1763358066080,3.21059253,3183.1,3183.0,0.2657]
[1763358066277,3.21059253,3183.1,3182.7,0.00471305]
[1763358066278,3.71994253,3183.1,3182.7,0.00471305]
[1763358066673,4.88134488,3183.1,3182.7,0.00471305]
[1763358066878,4.88134488,3183.1,3182.0,0.2657]
[1763358066879,1.16140235,3182.8,3182.0,0.2657]
[1763358067080,3.2078,3182.1,3182.0,0.2657]
[1763358067476,3.2078,3182.1,3182.0,0.9526]
[1763358067984,3.2078,3182.1,3182.0,0.2657]
[1763358068182,3.2078,3182.1,3182.0,0.9526]
[1763358069086,3.2078,3182.1,3182.0,2.11400235]
[1763358071181,3.2078,3182.5,3182.4,0.6869]
[1763358074693,3.2078,3182.5,3182.0,1.42710235]
[1763358074894,3.2078,3182.5,3182.0,0.2657]
[1763358075394,3.2078,3182.5,3182.4,0.6869]
[1763358075579,3.2078,3182.5,3182.0,0.2657]
[1763358075895,3.2078,3182.5,3182.4,0.6869]
[1763358080293,3.2078,3182.5,3182.1,1.3143181]
[1763358080497,3.2078,3182.5,3182.4,0.6938]
[1763358082492,3.2078,3182.8,3182.5,0.409]
[1763358082892,3.2078,3182.8,3182.7,0.6938]
[1763358084094,0.00279253,3183.1,3183.0,1.1028]
[1763358084396,0.7944638,3183.1,3183.0,1.1028]
[1763358084601,0.00279253,3183.1,3183.0,1.1028]
[1763358085992,0.00471305,3183.4,3183.3,0.6938]
[1763358086198,0.00471305,3183.4,3183.3,2.0081181]
[1763358086795,0.00471305,3183.4,3183.0,0.409]
[1763358087008,0.00734075,3183.4,3183.0,0.409]
[1763358087197,3.2078,3183.1,3183.0,0.409]
[1763358087498,3.2078,3183.1,3182.5,41.209]
[1763358087499,3.9997608,3183.1,3182.5,0.409]
[1763358087700,3.2078,3182.6,3182.5,0.409]
[1763358087893,3.9997608,3182.6,3182.5,0.409]
[1763358091397,3.9997608,3182.6,3182.5,1.1028]
[1763358094704,3.9997608,3182.6,3182.5,0.409]
[1763358097307,3.9997608,3182.6,3182.5,1.1028]
[1763358099904,3.2078,3183.1,3182.5,1.1028]
[1763358100211,0.76927408,3183.0,3182.9,0.6938]
[1763358100407,0.76927408,3183.0,3182.5,0.409]
[1763358100408,0.50939,3182.8,3182.5,0.409]
[1763358100705,0.76927408,3182.7,3182.5,0.409]
[1763358101012,0.76927408,3182.6,3182.5,1.1028]
[1763358101311,1.27863408,3183.0,3182.5,1.1028]
[1763358101607,0.76927408,3182.9,3182.5,1.1028]
[1763358101808,0.76927408,3182.8,3182.5,1.1028]
[1763358102005,0.76927408,3182.7,3182.6,0.6938]
[1763358102399,0.76927408,3183.0,3182.6,0.6938]
[1763358102598,0.76927408,3182.9,3182.6,0.6938]
[1763358103001,0.76927408,3182.8,3182.6,0.6938]
[1763358103202,0.76927408,3182.7,3182.6,0.6938]
[1763358103604,0.76927408,3183.0,3182.6,0.6938]
[1763358103811,0.76927408,3182.9,3182.6,0.6938]
[1763358104115,0.76927408,3182.8,3182.7,0.6938]
[1763358104410,0.76927408,3182.8,3182.5,0.409]
[1763358104611,0.76927408,3182.7,3182.5,0.409]
[1763358104806,3.97707408,3182.7,3182.5,0.409]
[1763358105002,0.76927408,3182.6,3182.5,1.1028]
[1763358106415,3.2078,3182.7,3182.5,1.1028]
[1763358107215,3.2078,3182.7,3182.6,0.6938]
[1763358107417,3.97704031,3182.7,3182.6,0.6938]
[1763358107918,3.97704031,3182.7,3182.5,0.409]
[1763358108113,3.2078,3182.7,3182.5,0.409]
[1763358110209,3.2078,3182.7,3182.6,0.5811]
[1763358110513,3.97686471,3182.7,3182.6,0.5811]
[1763358114017,3.2078,3182.7,3182.6,0.5811]
[1763358114221,3.97678592,3182.7,3182.6,0.5811]
[1763358114715,3.2078,3183.1,3183.0,0.9829]
[1763358114921,3.97683236,3183.1,3183.0,0.9829]
[1763358116615,3.97683236,3183.1,3183.0,0.4018]
[1763358117214,5.10149725,3183.1,3183.0,0.4018]
[1763358120326,5.10149725,3183.1,3182.5,0.409]
[1763358120519,3.2078,3182.7,3182.5,0.409]
[1763358120719,0.39169575,3182.6,3182.5,0.409]
[1763358121724,0.39169575,3182.6,3182.5,0.9901]
[1763358137040,0.39169575,3182.6,3182.5,2.14936406]
[1763358140438,0.39169575,3182.6,3182.5,0.9901]
[1763358140840,0.39169575,3182.6,3182.5,1.76302975]
[1763358141536,0.39169575,3182.6,3182.5,0.9901]
[1763358143735,0.39169575,3182.6,3182.5,0.409]
[1763358144630,0.50951,3182.1,3181.7,0.58921305]
[1763358144830,3.71731,3182.1,3182.0,0.3359]
[1763358145034,4.48439738,3182.1,3182.0,0.3359]
[1763358145229,4.48376445,3182.1,3182.0,0.3359]
[1763358145432,3.97425445,3182.1,3182.0,0.3359]
[1763358146436,3.97425445,3182.1,3182.0,0.9204]
[1763358148941,3.97425445,3182.1,3182.0,0.3359]
[1763358152437,3.97425445,3182.1,3182.0,0.9204]
[1763358155544,4.7471842,3182.1,3181.7,0.00471305]
[1763358155740,1.5393842,3182.0,3181.7,0.00471305]
[1763358155952,0.76645445,3181.9,3181.7,0.00471305]
[1763358156136,4.49022975,3182.1,3181.7,0.00471305]
[1763358156335,0.76473484,3182.0,3181.7,0.00471305]
[1763358156735,0.76473484,3182.0,3181.7,1.3621428]
[1763358157736,0.76473484,3182.0,3181.9,1.35742975]
[1763358158131,3.2078,3182.1,3182.0,0.9204]
[1763358158438,3.97246997,3182.1,3182.0,1.69332975]
[1763358159742,3.2078,3182.5,3182.4,0.5845]
[1763358159945,3.97248293,3182.5,3182.4,1.35742975]
[1763358161039,3.2078,3182.5,3182.4,1.35742975]
[1763358163751,3.2078,3182.5,3182.4,0.5845]
[1763358165648,3.2078,3182.5,3182.4,1.35742975]
[1763358166040,1.28228975,3183.0,3182.5,0.3359]
[1763358166247,3.2078,3182.6,3182.5,0.3359]
[1763358166552,3.9730484,3182.6,3182.5,0.3359]
[1763358167047,3.9730484,3182.6,3182.5,0.9204]
[1763358174058,0.7652484,3182.6,3182.5,0.9204]
[1763358174258,3.9730484,3182.6,3182.5,0.9204]
[1763358176761,3.2078,3183.1,3183.0,0.3507]
[1763358177053,3.97343753,3183.1,3183.0,1.12362975]
[1763358178661,3.97343753,3183.1,3183.0,1.66262975]
[1763358180973,0.00734075,3183.4,3183.3,0.539]
[1763358181152,0.00734075,3183.4,3183.3,1.31192975]
[1763358182062,3.2078,3183.0,3181.0,0.3507]
[1763358182365,3.98072975,3181.8,3181.0,0.3507]
[1763358182662,0.76345937,3181.7,3181.0,1.12362975]
[1763358182864,0.76345937,3181.7,3181.2,0.77292975]
[1763358183263,0.76345937,3181.7,3181.3,0.0069971]
[1763358185367,1.53638912,3181.7,3181.3,0.0069971]
[1763358185566,0.76345937,3181.6,3181.3,0.0069971]
[1763358187364,0.77292975,3181.7,3181.3,0.0069971]
[1763358187564,0.79191192,3181.6,3181.3,0.0069971]
[1763358188070,0.79191192,3181.6,3181.5,0.8047]
[1763358188269,3.2078,3181.8,3181.6,0.539]
[1763358188471,0.79179947,3181.7,3181.6,0.539]
[1763358189067,3.2078,3181.8,3181.7,0.539]
[1763358189270,3.99955852,3181.8,3181.7,0.539]
[1763358190172,3.2078,3181.8,3181.7,0.539]
[1763358190369,3.2078,3181.8,3181.5,0.2657]
[1763358190564,0.77292975,3181.7,3181.5,0.2657]
[1763358190867,0.50961,3181.4,3181.3,0.0069971]
[1763358191070,1.5458595,3181.2,3180.0,3.5585]
[1763358191275,3.98072975,3180.6,3180.0,3.5585]